bitfinex-derivatives/quotes_SOLF0:USTF0_20220110
["timestamp","ask_amount","ask_price","bid_price","bid_amount"]
[1641842506874,4.23451055,133.7,133.65,1.87]
[1641842507475,4.23451055,133.73,133.66,2.06519811]
[1641842507675,10.21715896,133.73,133.66,2.06519811]
[1641842508377,4.23451055,133.72,133.63,2.06519811]
[1641842508577,4.23451055,133.72,133.67,2.06519811]
[1641842508775,27.66479,133.7,133.67,2.06519811]
[1641842508975,27.66479,133.7,133.64,2.06519811]
[1641842509174,34.69079,133.7,133.64,2.06519811]
[1641842509477,4.23451055,133.69,133.64,2.06519811]
[1641842510379,4.23451055,133.69,133.62,2.06519811]
[1641842514482,4.23451055,133.69,133.61,2.06519811]
[1641842514684,12.12451055,133.69,133.61,2.06519811]
[1641842514888,27.66479,133.65,133.61,2.06519811]
[1641842515288,27.66479,133.65,133.6,2.06519811]
[1641842515486,33.59779,133.65,133.6,2.06519811]
[1641842515886,4.23624061,133.64,133.58,2.06519811]
[1641842516386,4.23624061,133.64,133.57,2.06519811]
[1641842516789,4.23624061,133.64,133.59,2.06519811]
[1641842517189,4.23624061,133.64,133.57,2.06519811]
[1641842518490,4.23624061,133.64,133.56,1.87]
[1641842518791,55.32958,133.57,133.54,15.48030611]
[1641842518988,62.64358,133.57,133.54,15.48030611]
[1641842519389,62.64358,133.57,133.53,10.25341104]
[1641842519589,10.22964383,133.56,133.55,2.06976922]
[1641842519790,10.22964383,133.56,133.46,105.20583151]
[1641842520591,5.99024543,133.56,133.46,105.20583151]
[1641842520791,27.66479,133.52,133.46,105.20583151]
[1641842521091,27.66479,133.52,133.47,1.63574091]
[1641842521491,4.24003872,133.51,133.47,1.63574091]
[1641842522192,4.24003872,133.51,133.46,105.20583151]
[1641842524797,27.66479,133.48,133.46,105.20583151]
[1641842524996,4.24003872,133.51,133.46,105.20583151]
[1641842525198,27.66479,133.52,133.46,111.84083151]
[1641842525598,17.12805038,133.6,133.46,111.84083151]
[1641842526698,22.45091166,133.59,133.46,111.84083151]
[1641842526901,27.66479,133.51,133.46,105.20583151]
[1641842527699,5.99279752,133.5,133.46,105.20583151]
[1641842527998,19.63002221,133.5,133.46,105.20583151]
[1641842528200,19.62987636,133.5,133.46,105.20583151]
[1641842528402,4.24022469,133.49,133.46,105.20583151]
[1641842528804,27.66479,133.47,133.46,105.20583151]
[1641842529207,31.90501469,133.47,133.46,106.06616886]
[1641842532207,4.24022469,133.47,133.46,106.06616886]
[1641842532407,27.66479,133.51,133.46,106.06616886]
[1641842532607,27.66479,133.51,133.46,114.29716886]
[1641842533009,27.66479,133.51,133.46,113.43683151]
[1641842533709,4.24049355,133.5,133.47,1.76253319]
[1641842535712,4.24049355,133.53,133.47,1.76253319]
[1641842537814,4.24049355,133.53,133.48,1.872]
[1641842538013,4.24049355,133.56,133.48,1.872]
[1641842538214,4.24049355,133.56,133.47,71.04393319]
[1641842538413,4.24049355,133.56,133.49,1.76253319]
[1641842539015,27.66479,133.53,133.48,1.76253319]
[1641842539914,4.24022954,133.52,133.47,1.76253319]
[1641842540316,11.18222954,133.52,133.47,1.76253319]
[1641842540815,4.24022954,133.51,133.44,1.76253319]
[1641842541016,27.66479,133.5,133.44,1.76253319]
[1641842541217,27.66479,133.5,133.41,29.53679]
[1641842541218,27.66479,133.5,133.42,1.76253319]
[1641842541716,4.24022954,133.49,133.42,1.76253319]
[1641842543518,13.14722954,133.49,133.42,1.76253319]
[1641842544118,8.907,133.49,133.42,1.76253319]
[1641842544517,27.66479,133.5,133.42,1.76253319]
[1641842544921,55.32958,133.5,133.42,1.76253319]
[1641842545120,4.24141343,133.49,133.41,1.76253319]
[1641842546823,4.24141343,133.49,133.38,1.76253319]
[1641842547025,27.66479,133.44,133.38,1.76253319]
[1641842547622,27.66479,133.44,133.36,1.76253319]
[1641842547823,27.66479,133.44,133.37,1.874]
[1641842548024,33.65748796,133.5,133.37,1.874]
[1641842548222,33.65748796,133.5,133.38,1.76253319]
[1641842548626,4.24229781,133.49,133.38,1.76253319]
[1641842548823,12.26229781,133.49,133.38,1.76253319]
[1641842549023,27.66479,133.47,133.38,1.873]
[1641842549524,4.24229781,133.46,133.39,1.76253319]
[1641842550325,4.24229781,133.46,133.39,12.00706743]
[1641842550725,4.24229781,133.46,133.4,1.76253319]
[1641842551326,27.66479,133.47,133.4,7.43453319]
[1641842551525,27.66479,133.5,133.41,1.873]
[1641842551926,27.66479,133.5,133.41,3.63553319]
[1641842552326,4.24162974,133.49,133.42,7.75847638]
[1641842552528,4.24162974,133.49,133.43,1.873]
[1641842552729,4.24162974,133.49,133.43,1.76253319]
[1641842552929,27.66479,133.44,133.43,1.76253319]
[1641842553330,27.66479,133.44,133.42,1.76253319]
[1641842553729,27.66479,133.44,133.39,1.76253319]
[1641842554532,27.66479,133.44,133.4,1.873]
[1641842554731,27.66479,133.44,133.39,1.76253319]
[1641842556034,4.24335252,133.43,133.39,1.76253319]
[1641842557035,27.66479,133.4,133.39,1.76253319]
[1641842561446,27.66479,133.4,133.38,12.78017742]
[1641842561943,5.99758459,133.39,133.34,31.28601352]
[1641842562344,5.99886915,133.36,133.32,4.5286446]
[1641842562544,14.00986915,133.36,133.32,4.5286446]
[1641842562746,14.00986915,133.36,133.33,2.33091483]
[1641842562747,6.00013429,133.34,133.33,2.33091483]
[1641842563144,61.32971429,133.34,133.33,2.33091483]
[1641842563745,65.57614098,133.34,133.33,2.33091483]
[1641842563945,6.00096906,133.32,133.29,167.2293805]
[1641842564146,13.99596906,133.32,133.29,167.2293805]
[1641842565145,55.32958,133.3,133.29,167.2293805]
[1641842565348,55.32958,133.3,133.29,63.09253371]
[1641842565546,59.5768816,133.3,133.29,63.09253371]
[1641842566547,67.1518816,133.3,133.29,63.09253371]
[1641842566749,73.1535224,133.3,133.29,63.09253371]
[1641842566949,73.1535224,133.3,133.16,74.09516212]
[1641842567250,27.66479,133.26,133.16,74.09516212]
[1641842567450,35.30079,133.26,133.16,74.09516212]
[1641842569255,35.30079,133.26,133.17,1.875]
[1641842569453,27.66479,133.26,133.17,1.875]
[1641842570259,27.66479,133.3,133.17,14.0400541]
[1641842570459,27.66479,133.3,133.18,71.6992]
[1641842570657,27.66479,133.3,133.19,1.875]
[1641842570858,4.24748956,133.29,133.19,1.875]
[1641842571059,4.24748956,133.29,133.2,27.66479]
[1641842571261,4.24748956,133.29,133.21,1.875]
[1641842571860,4.24748956,133.29,133.19,1.875]
[1641842572062,4.24748956,133.29,133.2,6.00585429]
[1641842572260,12.05548956,133.29,133.21,1.875]
[1641842572760,4.24748956,133.28,133.21,1.875]
[1641842573161,31.91227956,133.28,133.21,1.875]
[1641842573761,4.24748956,133.27,133.17,1.875]
[1641842575161,4.24748956,133.27,133.18,33.67139266]
[1641842575361,4.24748956,133.27,133.19,1.875]
[1641842575563,27.66479,133.28,133.19,1.875]
[1641842575763,27.66479,133.28,133.17,1.875]
[1641842575962,4.24808164,133.27,133.16,67.17902941]
[1641842576164,4.24808164,133.27,133.17,7.88314588]
[1641842576361,27.66479,133.28,133.17,15.56014588]
[1641842577064,27.66479,133.28,133.19,27.66479]
[1641842577762,27.66479,133.28,133.17,7.88314588]
[1641842579065,27.66479,133.28,133.18,27.66479]
[1641842579564,27.66479,133.28,133.17,7.88314588]
[1641842579766,4.24793966,133.27,133.17,1.876]
[1641842580165,4.24793966,133.27,133.18,1.84881956]
[1641842580766,4.24793966,133.27,133.18,7.67381956]
[1641842580968,27.66479,133.3,133.18,13.68052228]
[1641842581167,27.66479,133.3,133.2,27.66479]
[1641842581368,4.24754203,133.29,133.2,27.66479]
[1641842581866,4.24754203,133.29,133.21,1.84881956]
[1641842582269,27.66479,133.3,133.21,1.84881956]
[1641842582466,27.66479,133.3,133.22,1.875]
[1641842582666,27.66479,133.3,133.21,81.94591956]
[1641842582966,4.24736469,133.29,133.23,1.84881956]
[1641842583469,27.66479,133.3,133.23,1.84881956]
[1641842583669,27.66479,133.3,133.22,1.84881956]
[1641842584069,27.66479,133.32,133.22,1.84881956]
[1641842584271,27.66479,133.32,133.23,1.875]
[1641842584471,4.24676399,133.31,133.23,1.875]
[1641842585073,4.24676399,133.31,133.24,1.84881956]
[1641842585873,4.24676399,133.31,133.23,1.84881956]
[1641842587074,4.24676399,133.31,133.24,1.875]
[1641842587474,27.66479,133.32,133.25,1.84881956]
[1641842588976,4.24685142,133.31,133.25,1.84881956]
[1641842589176,27.66479,133.3,133.25,1.84881956]
[1641842589376,27.66479,133.3,133.24,1.84881956]
[1641842590477,6.242,133.31,133.24,1.84881956]
[1641842590777,11.24,133.37,133.24,1.84881956]
[1641842590778,19.086,133.42,133.25,7.87873492]
[1641842590977,8.62998133,133.49,133.27,6.00240646]
[1641842591181,27.66479,133.39,133.29,27.66479]
[1641842591379,4.24565372,133.38,133.29,27.66479]
[1641842591577,4.24565372,133.38,133.3,1.874]
[1641842591877,4.24565372,133.38,133.31,1.84881956]
[1641842592078,4.24565372,133.38,133.32,1.874]
[1641842592479,4.24565372,133.38,133.33,1.84881956]
[1641842592978,4.24565372,133.38,133.33,7.84891412]
[1641842593179,4.24565372,133.38,133.33,1.84881956]
[1641842593378,4.24565372,133.38,133.34,1.84881956]
[1641842593578,4.24565372,133.38,133.34,9.23181956]
[1641842593779,4.24565372,133.4,133.34,7.383]
[1641842594180,4.24565372,133.4,133.35,1.84881956]
[1641842594380,4.24565372,133.4,133.35,3.72281956]
[1641842594880,4.24565372,133.4,133.35,1.84881956]
[1641842595079,4.24565372,133.4,133.36,1.84881956]
[1641842595681,4.24565372,133.4,133.35,27.66479]
[1641842596080,4.24565372,133.4,133.36,1.84881956]
[1641842597481,4.24565372,133.4,133.35,1.84881956]
[1641842597681,10.21865372,133.4,133.35,1.84881956]
[1641842597981,4.24565372,133.39,133.33,1.84881956]
[1641842599282,4.24565372,133.39,133.33,3.72281956]
[1641842599787,4.24565372,133.39,133.34,1.84881956]
[1641842600184,4.24565372,133.4,133.33,1.84881956]
[1641842600382,4.24565372,133.4,133.34,1.874]
[1641842600682,4.24565372,133.4,133.35,1.84881956]
[1641842602485,4.24565372,133.4,133.33,1.84881956]
[1641842602985,11.01165372,133.4,133.33,7.84896715]
[1641842603384,4.24565372,133.39,133.34,1.84881956]
[1641842604586,4.24565372,133.39,133.35,1.874]
[1641842605090,6.766,133.4,133.36,1.84881956]
[1641842605288,27.66479,133.41,133.36,29.51360956]
[1641842605889,4.24421872,133.4,133.37,1.84881956]
[1641842606289,4.24421872,133.4,133.36,1.84881956]
[1641842606689,4.24421872,133.4,133.35,1.84881956]
[1641842607191,11.45321872,133.4,133.35,1.84881956]
[1641842607589,4.24421872,133.39,133.35,1.84881956]
[1641842608590,4.24421872,133.39,133.34,1.84881956]
[1641842608789,4.24421872,133.39,133.35,1.874]
[1641842608991,27.66479,133.41,133.35,1.874]
[1641842609491,4.24398006,133.4,133.36,1.84881956]
[1641842612392,10.24137191,133.4,133.36,1.956e-05]
[1641842612793,5.99739185,133.4,133.33,10.23768112]
[1641842613194,27.66479,133.38,133.33,10.23768112]
[1641842613694,4.24532445,133.37,133.34,1.4581504]
[1641842615796,4.24532445,133.38,133.34,1.4581504]
[1641842617501,4.24532445,133.38,133.34,7.5631504]
[1641842617701,4.24532445,133.4,133.34,7.5631504]
[1641842617900,4.24532445,133.4,133.34,9.4371504]
[1641842618099,4.24532445,133.4,133.35,1.4581504]
[1641842619603,4.24532445,133.4,133.34,3.3321504]
[1641842619804,4.24532445,133.4,133.36,1.4581504]
[1641842620202,4.24532445,133.4,133.35,1.4581504]
[1641842622004,15.81337289,133.45,133.35,11.71175124]
[1641842622204,15.81337289,133.45,133.36,1.874]
[1641842622404,4.24356725,133.44,133.36,3.3321504]
[1641842622806,4.24356725,133.44,133.37,1.4581504]
[1641842623408,4.24356725,133.44,133.37,3.98865082]
[1641842623807,4.24356725,133.44,133.38,1.4581504]
[1641842624008,4.24356725,133.44,133.38,5.86165082]
[1641842624608,4.24356725,133.44,133.39,1.4581504]
[1641842625410,4.24356725,133.44,133.39,29.1229404]
[1641842626009,4.24356725,133.44,133.4,1.4581504]
[1641842626810,2.75824845,133.43,133.4,5.04e-05]
[1641842627010,2.75824845,133.43,133.39,5.04e-05]
[1641842627510,30.42303845,133.43,133.39,5.04e-05]
[1641842628212,4.24385879,133.42,133.39,5.04e-05]
[1641842628411,9.93285879,133.42,133.39,5.04e-05]
[1641842629110,4.24385879,133.41,133.39,5.04e-05]
[1641842632416,4.24385879,133.45,133.39,5.04e-05]
[1641842633720,7.00236408,133.45,133.39,5.04e-05]
[1641842634221,4.24385879,133.44,133.39,5.04e-05]
[1641842635324,12.78185879,133.44,133.39,5.04e-05]
[1641842635925,4.24385879,133.43,133.39,5.04e-05]
[1641842637325,4.24385879,133.45,133.39,5.04e-05]
[1641842639928,4.24385879,133.45,133.39,2.52848083]
[1641842640529,4.24385879,133.45,133.4,5.04e-05]
[1641842641731,5.99579829,133.43,133.4,5.04e-05]
[1641842641932,55.32958,133.41,133.37,2.52843043]
[1641842642131,55.32958,133.41,133.35,15.862552]
[1641842642332,4.24385879,133.4,133.38,1.15137649]
[1641842642632,11.57785879,133.4,133.35,1.15142849]
[1641842642831,11.57785879,133.4,133.36,1.15211155]
[1641842643332,7.334,133.4,133.36,1.15211155]
[1641842643734,4.2451506,133.39,133.36,1.15211155]
[1641842646034,27.66479,133.38,133.36,1.15211155]
[1641842646734,4.2451506,133.37,133.36,1.15211155]
[1641842647335,27.66479,133.41,133.36,1.15211155]
[1641842647535,42.2916969,133.46,133.36,11.77580775]
[1641842647935,42.2916969,133.46,133.36,10.6236962]
[1641842648135,27.66479,133.43,133.37,2.5306962]
[1641842648638,27.66479,133.43,133.37,4.34294236]
[1641842649038,27.66479,133.43,133.37,1.81224616]
[1641842649239,4.24411502,133.42,133.38,1.81224616]
[1641842649639,4.24411502,133.42,133.37,1.81224616]
[1641842652241,4.24411502,133.42,133.36,1.81224616]
[1641842653741,4.24411502,133.42,133.37,2.52988219]
[1641842654445,4.24411502,133.42,133.38,1.81224616]
[1641842655642,4.24411502,133.45,133.38,1.81224616]
[1641842655843,4.24411502,133.45,133.39,2.52939925]
[1641842656043,4.24411502,133.45,133.44,27.66479]
[1641842656244,63.42897774,133.48,133.44,36.84779]
[1641842656445,63.42897774,133.48,133.44,38.66003616]
[1641842657047,63.42897774,133.48,133.44,39.37718925]
[1641842657246,63.42897774,133.48,133.44,11.71239925]
[1641842657449,63.42897774,133.48,133.44,2.52939925]
[1641842657746,4.24225225,133.47,133.45,1.84156933]
[1641842657946,11.70125225,133.47,133.45,1.84156933]
[1641842658246,14.45829996,133.47,133.37,27.66479]
[1641842658446,14.45829996,133.47,133.38,1.873]
[1641842658647,10.21604771,133.47,133.38,1.873]
[1641842658948,13.45290661,133.47,133.38,1.873]
[1641842659145,13.45290661,133.47,133.38,2.52683174]
[1641842659547,4.24342541,133.46,133.39,1.45598687]
[1641842659747,4.24342541,133.46,133.4,1.873]
[1641842660149,4.24342541,133.46,133.39,1.45598687]
[1641842660348,4.24342541,133.46,133.41,1.45598687]
[1641842660847,4.24342541,133.46,133.37,1.45598687]
[1641842661349,4.24342541,133.46,133.38,2.5270949]
[1641842661749,4.24342541,133.46,133.39,1.45598687]
[1641842662149,4.24342541,133.46,133.4,27.66479]
[1641842662348,4.24342541,133.46,133.41,1.873]
[1641842662548,4.24342541,133.46,133.4,29.53779]
[1641842662748,4.24342541,133.46,133.41,1.45598687]
[1641842663549,4.24342541,133.47,133.41,1.45598687]
[1641842666951,23.96367176,133.47,133.39,1.45598687]
[1641842667154,43.56740181,133.47,133.39,1.45598687]
[1641842667554,5.9948265,133.45,133.34,44.16026479]
[1641842667753,5.9948265,133.45,133.34,42.28726479]
[1641842667952,5.9965919,133.41,133.34,42.28726479]
[1641842668155,27.66479,133.35,133.34,42.28726479]
[1641842668354,34.77979,133.35,133.34,42.28726479]
[1641842669054,34.77979,133.35,133.34,44.28814887]
[1641842669055,39.02495957,133.35,133.34,44.28814887]
[1641842669955,39.02495957,133.35,133.34,4.887e-05]
[1641842670756,39.02495957,133.35,133.29,63.44982585]
[1641842671157,4.24516957,133.34,133.29,63.44982585]
[1641842671556,4.24516957,133.34,133.33,17.10952282]
[1641842671957,4.24516957,133.34,133.33,1.58182282]
[1641842672157,11.44508292,133.34,133.32,18.01567868]
[1641842672360,11.44508292,133.34,133.32,10.81567868]
[1641842672559,25.27421527,133.33,133.32,5.82867868]
[1641842673360,29.52280123,133.33,133.29,29.27850453]
[1641842673560,35.34480123,133.33,133.29,25.90750453]
[1641842674362,55.32958,133.3,133.28,99.73769247]
[1641842674563,64.11958,133.3,133.28,99.73769247]
[1641842674765,29.52280123,133.29,133.28,99.73769247]
[1641842676066,31.39780123,133.29,133.28,99.73769247]
[1641842676466,31.39780123,133.29,133.28,96.97869247]
[1641842676966,29.52280123,133.29,133.28,96.97869247]
[1641842678166,29.52280123,133.29,133.28,84.97869247]
[1641842678567,29.52280123,133.29,133.28,57.77459765]
[1641842678968,29.52280123,133.29,133.28,12.77459765]
[1641842679370,29.52280123,133.29,133.22,23.04694565]
[1641842679569,4.25100109,133.27,133.15,119.28057387]
[1641842679769,13.44200109,133.27,133.15,111.28057387]
[1641842679969,9.191,133.27,133.15,111.28057387]
[1641842680171,29.52280123,133.26,133.15,111.28057387]
[1641842680371,55.32958,133.16,133.15,111.28057387]
[1641842680573,62.76358,133.16,133.15,111.28057387]
[1641842681173,92.28638123,133.16,133.15,111.28057387]
[1641842681573,92.28638123,133.16,133.15,106.26357387]
[1641842682575,84.85238123,133.16,133.15,106.26357387]
[1641842682975,59.57816596,133.16,133.15,106.26357387]
[1641842684579,59.57816596,133.16,133.15,107.51850295]
[1641842684978,59.57816596,133.16,133.15,106.26357387]
[1641842685380,31.91337596,133.16,133.15,106.26357387]
[1641842686178,16.56465892,133.25,133.15,106.26357387]
[1641842686379,27.56465892,133.25,133.15,106.26357387]
[1641842686579,27.66479,133.17,133.15,106.26357387]
[1641842687582,4.25188286,133.16,133.15,106.26357387]
[1641842691284,4.25188286,133.16,133.15,107.56084225]
[1641842691685,4.25188286,133.16,133.15,106.26357387]
[1641842693186,13.24788286,133.16,133.15,106.26357387]
[1641842696391,4.25188286,133.16,133.15,106.26357387]
[1641842696993,27.66479,133.19,133.15,108.41038834]
[1641842697397,27.66479,133.19,133.15,106.26357387]
[1641842697595,8.64661257,133.24,133.15,106.26357387]
[1641842698196,6.00705645,133.18,133.15,106.26357387]
[1641842698397,14.32005645,133.18,133.15,106.26357387]
[1641842698598,35.97779,133.18,133.15,100.25530804]
[1641842698897,4.25196528,133.17,133.15,100.25530804]
[1641842700601,27.66479,133.16,133.15,100.25530804]
[1641842700802,27.66479,133.16,133.15,36.42525922]
[1641842701003,27.66479,133.16,133.15,32.42525922]
[1641842701200,31.91675528,133.16,133.15,32.42525922]
[1641842702001,4.25196528,133.16,133.15,32.42525922]
[1641842702602,4.25196528,133.17,133.15,32.42525922]
[1641842707708,2.78641975,133.16,133.15,32.42525922]
[1641842708109,7.03838503,133.16,133.15,32.42525922]
[1641842708511,4.25196528,133.16,133.15,32.42525922]
[1641842708711,39.08479,133.18,133.15,32.42525922]
[1641842708910,39.08479,133.18,133.15,41.48125922]
[1641842709811,6.00790729,133.16,133.15,41.48125922]
[1641842710212,4.25209854,133.17,133.15,41.48125922]
[1641842710412,7.20794475,133.19,133.15,45.41457655]
[1641842710815,38.90479,133.21,133.15,41.48125922]
[1641842711015,27.66479,133.22,133.15,41.48125922]
[1641842711215,27.66479,133.22,133.16,1.877]
[1641842711413,10.97456755,133.2,133.16,1.877]
[1641842711614,10.97456755,133.2,133.17,4.25105519]
[1641842712616,16.32304013,133.24,133.17,4.25105519]
[1641842712818,16.32304013,133.24,133.17,31.91584519]
[1641842713316,3.5201646,133.23,133.18,4.25105519]
[1641842715718,3.5201646,133.23,133.18,6.12605519]
[1641842716322,16.32304013,133.24,133.19,4.25105519]
[1641842717018,16.32304013,133.24,133.2,4.25105519]
[1641842717418,16.32304013,133.24,133.18,11.133]
[1641842717623,16.32304013,133.24,133.18,1.875]
[1641842717819,16.32304013,133.24,133.19,4.24976928]
[1641842719623,42.38469754,133.27,133.19,4.24976928]
[1641842719824,6.00223554,133.29,133.19,4.24976928]
[1641842720023,3.1648156,133.26,133.2,1.875]
[1641842720223,27.66479,133.3,133.2,1.875]
[1641842720424,105.65664401,133.33,133.2,1.875]
[1641842720623,105.65664401,133.33,133.21,21.85665011]
[1641842720824,27.66479,133.31,133.22,29.53979]
[1641842721426,2.21522244,133.3,133.23,4.24916425]
[1641842723224,2.21522244,133.3,133.2,27.66479]
[1641842723427,2.21522244,133.3,133.21,1.875]
[1641842723825,2.21522244,133.3,133.21,6.12416425]
[1641842724423,2.21522244,133.3,133.22,4.24916425]
[1641842724625,2.21522244,133.3,133.23,1.875]
[1641842725429,2.21522244,133.3,133.24,4.24916425]
[1641842729135,2.21522244,133.3,133.24,31.91395425]
[1641842729632,2.21522244,133.3,133.25,4.24916425]
[1641842729833,2.21522244,133.3,133.25,6.12416425]
[1641842730132,2.21522244,133.3,133.26,4.24916425]
[1641842731134,63.54323628,133.34,133.27,27.66479]
[1641842731334,63.54323628,133.34,133.28,1.875]
[1641842732536,63.54323628,133.34,133.27,27.66479]
[1641842732736,0.84961165,133.33,133.29,4.24805826]
[1641842732937,6.85009273,133.33,133.29,4.24805826]
[1641842733137,27.66479,133.32,133.29,4.24805826]
[1641842733435,27.66479,133.32,133.25,4.24805826]
[1641842733638,0.84961165,133.31,133.24,29.53979]
[1641842733836,9.78661165,133.31,133.24,29.53979]
[1641842734037,9.78661165,133.31,133.25,4.24850054]
[1641842734437,0.84961165,133.3,133.25,4.24850054]
[1641842734638,0.84961165,133.3,133.26,1.875]
[1641842734838,0.84961165,133.3,133.25,6.12350054]
[1641842735039,0.84961165,133.3,133.25,4.24850054]
[1641842735243,28.51440165,133.3,133.25,4.24850054]
[1641842735738,0.84961165,133.29,133.25,4.24850054]
[1641842737041,27.66479,133.32,133.25,4.24850054]
[1641842737042,0.84961165,133.31,133.25,4.24850054]
[1641842737243,8.694,133.3,133.25,4.24850054]
[1641842737943,0.84961165,133.29,133.25,4.24850054]
[1641842738144,6.85192756,133.29,133.25,4.24850054]
[1641842738346,6.85192756,133.29,133.22,4.24850054]
[1641842738845,0.84961165,133.28,133.21,4.24850054]
[1641842739345,28.51440165,133.28,133.19,29.74443987]
[1641842739744,0.84961165,133.27,133.19,4.24850054]
[1641842739943,8.52561165,133.27,133.19,4.24850054]
[1641842740545,0.84961165,133.26,133.19,4.24850054]
[1641842741147,28.51440165,133.26,133.19,4.24850054]
[1641842741750,0.84961165,133.25,133.19,4.24850054]
[1641842742350,0.84961165,133.25,133.2,1.875]
[1641842742749,0.84961165,133.27,133.2,1.875]
[1641842742949,0.84961165,133.27,133.19,6.12350054]
[1641842743150,0.84961165,133.27,133.21,4.24850054]
[1641842743548,0.84961165,133.27,133.2,4.24850054]
[1641842744453,0.84961165,133.27,133.2,10.25443546]
[1641842744651,11.78159809,133.27,133.2,10.25443546]
[1641842744852,11.78159809,133.27,133.2,4.24850054]
[1641842745054,11.78159809,133.27,133.21,4.24850054]
[1641842745253,0.84961165,133.27,133.21,4.24850054]
[1641842745453,0.84961165,133.26,133.21,12.83150054]
[1641842745654,0.84961165,133.26,133.22,1.875]
[1641842745856,0.84961165,133.27,133.22,6.12350054]
[1641842746356,0.84961165,133.27,133.23,4.24850054]
[1641842746556,0.84961165,133.27,133.24,1.875]
[1641842746756,0.84961165,133.27,133.23,4.24850054]
[1641842747157,8.61461165,133.27,133.23,4.24850054]
[1641842747360,27.66479,133.25,133.23,4.24850054]
[1641842748159,0.84961165,133.24,133.19,4.24850054]
[1641842748359,6.58461165,133.24,133.19,4.24850054]
[1641842748559,12.58917629,133.24,133.17,4.24850054]
[1641842748959,2.77801677,133.23,133.17,4.24850054]
[1641842749159,2.77801677,133.23,133.15,34.30025922]
[1641842749160,2.77801677,133.23,133.16,4.24850054]
[1641842749361,27.66479,133.21,133.16,4.24850054]
[1641842749759,0.84961165,133.2,133.16,4.24850054]
[1641842752163,0.84961165,133.2,133.16,6.12550054]
[1641842752363,27.66479,133.21,133.16,6.12550054]
[1641842752661,27.66479,133.21,133.17,4.24850054]
[1641842752861,27.66479,133.21,133.18,1.877]
[1641842753763,0.85017058,133.2,133.19,4.25085292]
[1641842754164,0.85017058,133.2,133.16,4.25085292]
[1641842754365,0.85017058,133.2,133.16,6.12785292]
[1641842755072,0.85017058,133.2,133.17,4.25085292]
[1641842756568,6.85636267,133.2,133.17,4.25085292]
[1641842756966,6.00706169,133.18,133.13,36.63143827]
[1641842757273,27.66479,133.14,133.13,36.63143827]
[1641842757470,34.16979,133.14,133.13,36.63143827]
[1641842758369,40.17854015,133.14,133.06,27.66479]
[1641842758569,42.2188635,133.14,133.13,4.25317766]
[1641842758968,42.2188635,133.14,133.04,29.54179]
[1641842759169,42.2188635,133.14,133.04,27.66479]
[1641842759370,27.66479,133.1,133.04,27.66479]
[1641842759571,34.71179,133.1,133.04,27.66479]
[1641842760470,27.66479,133.1,133.05,23.01416128]
[1641842760670,27.66479,133.1,133.05,24.89116128]
[1641842760871,27.66479,133.14,133.05,24.89116128]
[1641842761274,1.44639549,133.13,133.06,50.67895128]
[1641842761473,1.44639549,133.13,133.07,1.877]
[1641842761672,1.44639549,133.13,133.07,23.01416128]
[1641842762575,1.44639549,133.13,133.05,1.877]
[1641842763275,27.66479,133.12,133.05,1.877]
[1641842763475,27.66479,133.12,133.04,29.54179]
[1641842763877,1.44639549,133.11,133.05,23.01428275]
[1641842765778,9.11339549,133.11,133.05,23.01428275]
[1641842766078,1.44639549,133.1,133.04,29.54179]
[1641842766578,1.44639549,133.1,133.05,14.51470145]
[1641842767179,1.44639549,133.11,133.04,29.54179]
[1641842767379,7.07,133.1,133.04,29.54179]
[1641842768180,8.64894437,133.2,133.05,14.51364105]
[1641842768380,8.64894437,133.2,133.06,73.678]
[1641842768581,3.14624808,133.15,133.06,73.678]
[1641842769180,3.14624808,133.15,133.06,1.877]
[1641842769380,27.66479,133.13,133.05,1.877]
[1641842769583,27.66479,133.13,133.05,71.9953]
[1641842769981,3.14624808,133.12,133.05,71.9953]
[1641842770183,3.14624808,133.12,133.05,1.877]
[1641842771184,3.14624808,133.12,133.05,76.5384]
[1641842771384,3.14624808,133.12,133.07,27.66479]
[1641842771983,3.14624808,133.12,133.07,29.54179]
[1641842772187,3.14624808,133.13,133.07,29.54179]
[1641842772383,3.14624808,133.13,133.07,27.66479]
[1641842773686,3.14624808,133.13,133.08,1.877]
[1641842773885,3.14624808,133.14,133.08,1.877]
[1641842774086,3.14624808,133.14,133.07,27.66479]
[1641842774288,3.14624808,133.14,133.09,4.25329577]
[1641842774688,3.14624808,133.14,133.08,4.25329577]
[1641842777593,9.15522728,133.14,133.08,4.25329577]
[1641842777791,15.94922728,133.14,133.08,4.25329577]
[1641842778393,3.14624808,133.13,133.07,4.25329577]
[1641842778893,3.14624808,133.13,133.06,4.25329577]
[1641842779695,30.81103808,133.13,133.06,4.25329577]
[1641842780094,3.14624808,133.12,133.06,4.25329577]
[1641842781695,3.14624808,133.12,133.06,31.91808577]